[Event "26th Triest Festival 2024"]
[Site "Triest"]
[Date "2024.09.02"]
[Round "3.1"]
[White "Bosiocic, Marin"]
[Black "Marn, Jan"]
[Result "1-0"]
[Annotator "TA"]
[ECO "C79"]
[WhiteElo "2555"]
[BlackElo "2344"]
[PlyCount "77"]
[EventDate "2024.09.02"]
[EventType "swiss"]
[EventCountry "ITA"]
[SourceTitle "playchess.com"]
[Source "ChessBase"]
[SourceQuality "1"]
[TimeControl "5400+30"]

{[%evp 15,77,31,33,16,19,20,12,19,17,0,21,0,5,9,18,21,30,26,40,47,47,16,33,22,33,18,23,13,30,25,17,27,73,42,48,48,50,56,137,149,216,217,222,222,253,246,277,270,287,238,891,914,912,914,877,847,811,804,1568,1485,1392,1318,29987,29988]} 1. e4 {[%emt 0:01:38]} e5 {[%emt 0:01:18]} 2. Nf3 {[%emt 0:00:12]} Nc6 {[%emt 0:00:05]} 3. Bb5 {[%emt 0:00:07]} a6 {[%emt 0:01:26]} 4. Ba4 {[%emt 0:00:07]} Nf6 {[%emt 0:00:06]} 5. O-O {[%emt 0:00:08]} d6 {[%emt 0:00:08]} 6. Re1 {[%emt 0:02:09]} Bd7 {[%emt 0:00:13]} 7. c3 {[%emt 0:00:10]} g6 {[%emt 0:00:09]} 8. d4 {[%emt 0:00:22]} Bg7 {[%emt 0:00:13]} 9. dxe5 {[%emt 0:00:38]} Nxe5 {[%emt 0:01:26]} 10. Nxe5 {[%emt 0:00:33]} dxe5 {[%emt 0:00:06]} 11. Bb3 {[%emt 0:00:07] The position is equal.} O-O {[%emt 0:02:10]} 12. Nd2 {[%emt 0:01:36]} Qe7 {[%emt 0:02:08]} 13. Nc4 {[%emt 0:00:51]} b5 {[%emt 0:06:54]} 14. Ne3 {[%emt 0:00:08]} c5 {[%emt 0:00:33][%cal Od7c6]} (14... Nxe4 $2 {too greedy.} 15. Nd5 Qh4 16. g3 (16. Nxc7 $2 {loses.} Qxf2+ 17. Kh1 Bg4 $19) (16. Rxe4 Qxe4 17. Bg5 Qg4 $11) 16... Nxf2 17. gxh4 $18) 15. Nd5 {[%emt 0:04:59]} Nxd5 {[%emt 0:00:36]} 16. Bxd5 {[%emt 0:00:10]} Rad8 {[%emt 0:00:46][%cal Od7c6]} 17. c4 {[%emt 0:01:42]} Be6 {[%emt 0:02:43]} 18. Qc2 {[%emt 0:00:20]} Bxd5 {[%emt 0:03:49]} 19. cxd5 {[%emt 0:00:14]} Rb8 {[%emt 0:07:14]} 20. Be3 {[%emt 0:01:34]} Rfc8 {[%emt 0:00:25]} 21. a4 {[%emt 0:00:44]} c4 {[%emt 0:05:37]} 22. axb5 {[%emt 0:01:18]} axb5 {[%emt 0:00:02]} 23. Ra7 {[%emt 0:01:25]} Rb7 {[%emt 0:01:59]} (23... Qb4 $11 {was preferrable.} 24. Bd2 Qd6) 24. Rea1 {[%emt 0:00:57]} Rxa7 {[%emt 0:00:05]} 25. Rxa7 {[%emt 0:00:08]} (25. Bxa7 $2 {perishes.} Ra8 26. g3 Rxa7 $19) 25... Qd6 {[%emt 0:00:09]} 26. g3 {[%emt 0:01:14]} b4 {[%emt 0:06:59]} (26... Bf8 $14) 27. Qa4 $16 {[%emt 0:02:43] White is more active.} c3 {[%emt 0:05:16]} (27... Bf8 $16) 28. bxc3 $18 {[%emt 0:00:55]} bxc3 {[%emt 0:00:02]} 29. Ra6 {[%emt 0:02:49][%cal Ba7a6,Ba6c6,Bc6c7,Bc7c3][%mdl 32]} Qd8 {[%emt 0:08:33]} 30. Rc6 {[%emt 0:02:22]} Ra8 {[%emt 0:05:29]} 31. Qc4 {[%emt 0:00:32]} Qd7 {[%emt 0:00:34]} 32. Kg2 {[%emt 0:00:59] Wards off Qh3+} f5 $2 {[%emt 0:01:40]} (32... Bf8 33. Qxc3 Bd6) 33. d6+ {[%emt 0:04:15]} Kh8 {[%emt 0:00:09]} 34. Qd5 {[%emt 0:00:28] [#] Threatens to win with Rc7.} Rf8 {[%emt 0:10:10]} 35. Rc7 {[%emt 0:02:43]} Qd8 {[%emt 0:00:02]} 36. Rxc3 {[%emt 0:08:15]} f4 {[%emt 0:00:33]} 37. gxf4 {[%emt 0:01:18]} Qd7 {[%emt 0:02:41]} 38. f3 {[%emt 0:01:14]} Qa4 {[%emt 0:01:03]} 39. d7 {[%emt 0:02:29] Weighted Error Value: White=0.07 (flawless) /Black=0.44.  Mistake:       	---       	Black=4      Inaccurate:     	White=2     	---        OK:         	White=8     	Black=4      Best:        	White=3     	Black=1} 1-0

[Event "26th Triest Festival 2024"]
[Site "Triest"]
[Date "2024.09.02"]
[Round "3.2"]
[White "Fischer, Daniel"]
[Black "Baklan, Vladimir"]
[Result "1/2-1/2"]
[Annotator "TA"]
[ECO "C64"]
[WhiteElo "2349"]
[BlackElo "2535"]
[PlyCount "81"]
[EventDate "2024.09.02"]
[EventType "swiss"]
[EventCountry "ITA"]
[SourceTitle "playchess.com"]
[Source "ChessBase"]
[SourceQuality "1"]
[TimeControl "5400+30"]

{[%evp 10,81,64,25,36,25,29,25,26,30,28,25,33,27,34,31,44,17,41,37,35,20,70,58,70,70,66,51,47,56,57,47,56,55,70,23,49,37,32,36,34,32,53,46,62,62,72,62,77,61,84,89,128,52,77,60,76,81,68,68,89,76,100,74,378,406,437,460,493,557,540,475,460,456]} 1. e4 {[%emt 0:00:04]} e5 {[%emt 0:00:55]} 2. Nf3 {[%emt 0:00:06]} Nc6 {[%emt 0:00:06]} 3. Bb5 {[%emt 0:00:05]} a6 {[%emt 0:00:05]} 4. Ba4 {[%emt 0:00:05]} Bc5 {[%emt 0:00:10]} 5. O-O {[%emt 0:02:24]} Nge7 {[%emt 0:00:19]} 6. c3 {[%emt 0:00:20]} (6. Nxe5 $5 Nxe5 7. d4 $14) 6... Ng6 {[%emt 0:00:47]} 7. d4 {[%emt 0:00:43]} Ba7 {[%emt 0:00:08]} 8. Bg5 {[%emt 0:00:42]} f6 {[%emt 0:00:16] White has an edge.} 9. Be3 {[%emt 0:00:05]} O-O {[%emt 0:00:23]} 10. Re1 {[%emt 0:01:08]} Kh8 {[%emt 0:01:35]} 11. Nbd2 {[%emt 0:04:50][%cal Bb1d2,Bd2f1,Bf1g3][%mdl 32]} d6 {[%emt 0:02:10]} 12. h3 {[%emt 0:00:56]} a5 {[%emt 0:07:38]} 13. Nf1 {[%emt 0:04:19]} Bd7 {[%emt 0:00:16]} 14. Bc2 {[%emt 0:01:12]} Qe8 {[%emt 0:01:20]} 15. a4 {[%emt 0:01:01]} Nd8 {[%emt 0:02:05]} (15... exd4 $11 16. Nxd4 Nxd4 17. Bxd4 (17. cxd4 d5 $14) 17... Qf7) 16. Ng3 {[%emt 0:01:41]} Ne6 {[%emt 0:03:23]} 17. Qd2 {[%emt 0:03:24]} Ngf4 {[%emt 0:02:11]} 18. Kh2 {[%emt 0:08:40]} Nh5 {[%emt 0:11:58]} 19. Nf5 {[%emt 0:09:17]} g6 {[%emt 0:01:16][%cal Bg7g6,Bg6g5,Bg5g4][%mdl 32]} 20. Ng3 {[%emt 0:01:01]} (20. N5h4 {looks sharper.} Nef4 21. Ng1 g5 22. Nf5) 20... Nxg3 {[%emt 0:10:02]} 21. fxg3 {[%emt 0:00:07]} g5 {[%emt 0:00:16]} 22. Ng1 {[%emt 0:02:53]} (22. Qd1 $14) 22... Ng7 {[%emt 0:11:18]} 23. b3 {[%emt 0:05:51]} g4 {[%emt 0:01:15]} 24. Rf1 {[%emt 0:04:37]} Qg6 {[%emt 0:02:24]} 25. Rae1 {[%emt 0:07:25]} Nh5 {[%emt 0:02:44] [#] ...gxh3 would now be deadly.} 26. h4 {[%emt 0:00:46]} Bc6 {[%emt 0:03:50]} 27. Bf2 {[%emt 0:04:07]} Rfe8 {[%emt 0:07:15]} 28. Bd3 {[%emt 0:09:35]} Re7 {[%emt 0:05:52]} 29. c4 {[%emt 0:05:41]} Qe8 {[%emt 0:02:33]} (29... Bxd4 $2 {loses.} 30. Bxd4 exd4 31. e5 $18) (29... exd4 $2 30. e5 f5 31. Qxa5 (31. exd6 Rxe1 32. Bxe1 Bd7 $18) 31... dxe5 32. Rxe5 Rxe5 (32... b6 $2 33. Qe1 $18) 33. Qxe5+ Qf6 34. Qxf5 (34. Qxc7 Bc5 $16) (34. Qxf6+ Nxf6 35. Ne2 Ne4 $18) 34... Qxf5 35. Bxf5 $18) 30. Ne2 {[%emt 0:03:11]} Bd7 {[%emt 0:02:21] [#]} 31. Bb1 {[%emt 0:00:49]} ({But not} 31. Qxa5 exd4 32. Qd2 (32. Qxc7 $2 {perishes.} Bc5 $19) 32... c5 $14) ({White should play} 31. c5 $1 $16) 31... exd4 {[%emt 0:03:51]} 32. Nxd4 {[%emt 0:00:36]} Re5 {[%emt 0:02:20]} 33. Be3 {[%emt 0:03:11][%cal Bf2e3,Be3c1,Bc1b2][%mdl 32]} Bc5 {[%emt 0:01:12]} 34. Qd3 {[%emt 0:00:30]} Qg6 {[%emt 0:03:59]} 35. Bc1 {[%emt 0:02:54]} Ng7 {[%emt 0:02:38]} 36. Ne2 {[%emt 0:04:48]} f5 $2 {[%emt 0:01:54][%mdl 8192] This move loses the game for Black.} (36... Ne6 $16 {is more resistant.}) 37. Nf4 $18 {[%emt 0:00:32]} Qe8 {[%emt 0:00:09]} 38. Bb2 {[%emt 0:00:33] White is clearly winning.} fxe4 {[%emt 0:00:55]} 39. Rxe4 {[%emt 0:00:37]} Bf5 {[%emt 0:00:39]} 40. Rxe5 {[%emt 0:04:02]} dxe5 {[%emt 0:00:19]} 41. Qd5 $1 {[%emt 0:00:15][%csl LRb7,LRc5,LRe5][%mdl 32768] Weighted Error Value: White=0.12 (very precise) /Black=0.26 (precise) .  Loses game:     	---       	Black=1      Mistake:       	White=2     	Black=1      Inaccurate:     	White=1     	Black=2      OK:         	White=15    	Black=8      Best:        	White=1     	Black=2     . An unexpected result.} 1/2-1/2

[Event "26th Triest Festival 2024"]
[Site "Triest"]
[Date "2024.09.02"]
[Round "3.3"]
[White "Tiviakov, Sergei"]
[Black "Kanyamarala, Tarun"]
[Result "1/2-1/2"]
[Annotator "TA"]
[ECO "B22"]
[WhiteElo "2531"]
[BlackElo "2361"]
[PlyCount "67"]
[EventDate "2024.09.02"]
[EventType "swiss"]
[EventCountry "ITA"]
[SourceTitle "playchess.com"]
[Source "ChessBase"]
[SourceQuality "1"]
[TimeControl "5400+30"]

{[%evp 13,67,0,14,6,0,0,12,-23,-21,0,-9,-6,0,0,0,0,-2,-7,-9,-10,0,-7,0,0,0,0,31,-2,0,0,0,0,0,-52,0,0,0,0,0,-14,0,-27,-24,-25,-25,-53,-59,-59,-56,-70,-48,-60,-44,-39,-31,-34]} 1. e4 {[%emt 0:01:15][%cal Be2e4,Be4e5][%mdl 32]} c5 {[%emt 0:00:12]} 2. Nf3 {[%emt 0:00:06]} e6 {[%emt 0:00:08]} 3. c3 {[%emt 0:00:04]} Nf6 {[%emt 0:00:09]} 4. e5 {[%emt 0:00:05]} Nd5 {[%emt 0:00:07]} 5. Bc4 {[%emt 0:00:06]} d6 {[%emt 0:00:18]} 6. d4 {[%emt 0:01:29]} cxd4 {[%emt 0:00:21]} 7. cxd4 {[%emt 0:00:04]} Be7 {[%emt 0:00:10]} 8. O-O {[%emt 0:00:12]} O-O {[%emt 0:00:08]} 9. Qe2 {[%emt 0:00:35]} b6 {[%emt 0:00:18]} 10. Nc3 {[%emt 0:08:37] The position is equal.} Nxc3 {[%emt 0:00:49]} 11. bxc3 {[%emt 0:00:03]} Bb7 {[%emt 0:02:37]} 12. Bf4 {[%emt 0:06:35]} dxe5 {[%emt 0:02:07]} 13. Nxe5 {[%emt 0:05:30]} Nc6 {[%emt 0:04:01]} 14. Rad1 {[%emt 0:04:48]} Nxe5 {[%emt 0:05:58]} 15. Bxe5 {[%emt 0:00:06]} Bd6 {[%emt 0:01:16]} 16. Bb3 {[%emt 0:01:13]} Rc8 {[%emt 0:06:23]} 17. c4 {[%emt 0:00:24]} Bxe5 {[%emt 0:03:57]} 18. Qxe5 {[%emt 0:00:09]} Qc7 {[%emt 0:00:23]} 19. Qe3 {[%emt 0:00:47]} Qc6 {[%emt 0:04:20][%csl Gb7][%cal Rc6g2] [#]} 20. f3 {[%emt 0:02:19]} Rfd8 {[%emt 0:05:35]} 21. Rfe1 {[%emt 0:05:42]} h6 {[%emt 0:05:21]} 22. h4 {[%emt 0:01:31]} Ba6 {[%emt 0:01:31]} 23. c5 {[%emt 0:04:54]} Rd7 {[%emt 0:11:12]} (23... Bb7 $15) 24. Rc1 $11 {[%emt 0:06:50]} Rcd8 {[%emt 0:04:34]} 25. Red1 {[%emt 0:00:09]} Bb7 {[%emt 0:04:45]} 26. Bc2 {[%emt 0:25:02]} Qc7 {[%emt 0:07:59]} 27. Bb3 {[%emt 0:04:19]} Bd5 {[%emt 0:08:35]} 28. Ba4 {[%emt 0:00:08] [#] Threatens to win with cxb6.} Re7 {[%emt 0:00:07]} 29. Qf2 {[%emt 0:02:05] Dodges Qg3} Qf4 {[%emt 0:01:12] Black is slightly better.} 30. Bb5 {[%emt 0:00:07]} Rc7 {[%emt 0:03:43]} 31. Bf1 {[%emt 0:00:18]} Rdc8 {[%emt 0:01:24]} 32. Rc2 {[%emt 0:01:46]} bxc5 {[%emt 0:03:34]} 33. dxc5 {[%emt 0:00:04]} Qb4 {[%emt 0:00:31][%cal Rc7c5]} 34. Rdc1 {[%emt 0:00:39] Weighted Error Value: White=0.11 (very precise) /Black=0.07 (flawless) .  Mistake:       	White=1     	Black=1      Inaccurate:     	White=4     	Black=1      OK:         	White=9     	Black=8      Best:        	White=1     	Black=1} 1/2-1/2

[Event "26th Triest Festival 2024"]
[Site "Triest"]
[Date "2024.09.02"]
[Round "3.4"]
[White "Barp, Alberto"]
[Black "Schlegel, Igor"]
[Result "1-0"]
[Annotator "TA"]
[ECO "D30"]
[WhiteElo "2431"]
[BlackElo "2212"]
[PlyCount "75"]
[EventDate "2024.09.02"]
[EventType "swiss"]
[EventCountry "ITA"]
[SourceTitle "playchess.com"]
[Source "ChessBase"]
[SourceQuality "1"]
[TimeControl "5400+30"]

{[%evp 9,75,0,0,-3,-3,0,7,0,10,12,8,-37,-7,-42,0,0,0,4,6,-56,-45,-47,-41,-70,-76,-75,-61,-93,-94,-89,-77,-83,-83,-82,27,0,31,-29,-33,-71,9,16,211,236,212,220,432,430,449,466,464,434,460,473,473,485,485,485,519,518,508,505,505,504,505,505,876,840]} 1. d4 {[%emt 0:00:07]} d5 {[%emt 0:00:56]} 2. c4 {[%emt 0:00:02]} e6 {[%emt 0:00:03]} 3. Nf3 {[%emt 0:00:05]} c6 {[%emt 0:00:07]} 4. g3 {[%emt 0:08:52]} dxc4 {[%emt 0:00:16]} 5. Bg2 {[%emt 0:00:06]} b5 {[%emt 0:00:21]} 6. Ne5 {[%emt 0:00:16]} Bb7 {[%emt 0:00:16]} 7. O-O {[%emt 0:00:29]} Nf6 {[%emt 0:01:08]} 8. a4 {[%emt 0:01:36] Threatens to win with axb5. The position is equal.} Qc8 {[%emt 0:07:14]} 9. b3 {[%emt 0:04:17]} cxb3 {[%emt 0:00:28]} 10. Qxb3 {[%emt 0:00:14]} b4 {[%emt 0:02:32]} 11. e4 {[%emt 0:05:32]} Nbd7 {[%emt 0:23:42]} 12. Nc4 {[%emt 0:01:08]} Be7 {[%emt 0:11:25]} 13. Bf4 {[%emt 0:07:04]} c5 {[%emt 0:02:22] [#]} 14. d5 $1 {[%emt 0:14:13]} exd5 $15 {[%emt 0:05:35]} 15. exd5 {[%emt 0:00:06]} O-O {[%emt 0:00:40]} (15... Nxd5 16. Nd6+ Bxd6 17. Bxd6 $16 (17. Bxd5 $2 Bxf4 18. Bxf7+ Kf8 $19)) 16. Rd1 {[%emt 0:07:58]} Re8 {[%emt 0:12:40]} 17. a5 {[%emt 0:15:24] Dodges Nb6} Bf8 {[%emt 0:16:11]} 18. Qd3 {[%emt 0:03:26]} Ba6 {[%emt 0:13:34]} 19. Nbd2 {[%emt 0:02:55]} Nh5 {[%emt 0:00:00] Hoping for ...Nxf4.} 20. Be3 {[%emt 0:00:46]} Ne5 {[%emt 0:00:00]} 21. Qb3 {[%emt 0:00:24]} Qf5 {[%emt 0:00:00]} (21... Nf6 $17 {...Qf5 is the strong threat.} 22. Nxe5 (22. d6 Nxc4 23. Nxc4 Qe6 $17) 22... Rxe5) 22. Nxe5 $11 {[%emt 0:07:25]} Qxe5 {[%emt 0:00:00]} (22... Rxe5 $5 23. Nc4 Bxc4 24. Qxc4 Rxe3 25. fxe3 Nf6 $16) 23. Rac1 {[%emt 0:01:54]} (23. d6 $14 Rad8 24. Bd5) 23... Rac8 {[%emt 0:00:00]} 24. Nc4 {[%emt 0:00:35]} Qc7 {[%emt 0:00:00]} (24... Qf5 $17 25. d6 Nf6) 25. d6 {[%emt 0:05:57]} Bxc4 $2 {[%emt 0:00:00] This costs Black the game.} (25... Qd7 $1 $11) 26. Qxc4 $18 {[%emt 0:00:14]} Bxd6 {[%emt 0:00:00][%cal Oh5f6]} 27. Qd5 {[%emt 0:00:05][%csl LRd6,LRh5]} Be5 {[%emt 0:00:00]} (27... Nxg3 28. hxg3 Bf8) 28. Rxc5 {[%emt 0:01:05] Black is weak on the light squares. White is clearly winning.} ({Inferior is} 28. Bxc5 Qxa5 29. Bxb4 Qxb4 $11) 28... Qe7 {[%emt 0:00:18]} 29. Rxc8 {[%emt 0:01:49]} Rxc8 {[%emt 0:00:01] [#]} 30. Bxa7 $1 {[%emt 0:02:57][%mdl 512] This pair of bishops is nice.} Nf6 {[%emt 0:00:55]} (30... g6 31. Be3) 31. Qb7 {[%emt 0:00:27]} Qxb7 {[%emt 0:04:45]} 32. Bxb7 {[%emt 0:00:05]} Re8 {[%emt 0:00:11]} 33. a6 {[%emt 0:05:06]} b3 {[%emt 0:00:48]} 34. Be3 {[%emt 0:00:16]} Bb8 {[%emt 0:00:21]} 35. a7 {[%emt 0:01:34]} Bxa7 {[%emt 0:00:04]} 36. Bxa7 {[%emt 0:00:03]} Re7 {[%emt 0:00:25][%cal Oh7h5]} 37. Rd8+ {[%emt 0:00:48]} Ne8 {[%emt 0:00:09]} (37... Re8 $142 38. Rxe8+ Nxe8) 38. Bd4 {[%emt 0:00:38] Weighted Error Value: White=0.12 (very precise) /Black=0.29 (precise) .  Loses game:     	---       	Black=1      Mistake:       	White=2     	Black=4      Inaccurate:     	White=5     	Black=2      OK:         	White=11    	Black=10     Best:        	White=6     	Black=2} 1-0

[Event "26th Triest Festival 2024"]
[Site "Triest"]
[Date "2024.09.02"]
[Round "3.5"]
[White "Brilej, Jaka"]
[Black "Doric, Darko"]
[Result "1/2-1/2"]
[Annotator "RC"]
[ECO "E14"]
[WhiteElo "2280"]
[BlackElo "2443"]
[PlyCount "177"]
[EventDate "2024.09.02"]
[EventType "swiss"]
[EventCountry "ITA"]
[SourceTitle "playchess.com"]
[Source "ChessBase"]
[SourceQuality "1"]
[TimeControl "5400+30"]

1. Nf3 {[%emt 0:03:32]} d5 {[%emt 0:00:41]} 2. e3 {[%emt 0:00:09]} Nf6 {[%emt 0:03:36]} 3. c4 {[%emt 0:00:20]} e6 {[%emt 0:01:04]} 4. Nc3 {[%emt 0:00:54]} Be7 {[%emt 0:04:43]} 5. b3 {[%emt 0:00:07]} O-O {[%emt 0:00:17]} 6. Bb2 {[%emt 0:00:06]} b6 {[%emt 0:03:02]} 7. cxd5 {[%emt 0:01:16]} exd5 {[%emt 0:00:15]} 8. d4 {[%emt 0:00:09]} Bb7 {[%emt 0:00:30]} 9. Bd3 {[%emt 0:00:48]} Nbd7 {[%emt 0:00:16]} 10. O-O {[%emt 0:00:10]} a6 {[%emt 0:00:41]} 11. Ne2 {[%emt 0:01:33]} Bd6 {[%emt 0:02:07]} 12. Ng3 {[%emt 0:00:47]} g6 {[%emt 0:00:52]} 13. Ne5 {[%emt 0:02:27]} Qe7 {[%emt 0:00:47]} 14. f4 {[%emt 0:01:17]} Ne4 {[%emt 0:03:47]} 15. Nxe4 {[%emt 0:23:02]} dxe4 {[%emt 0:00:07]} 16. Bc4 {[%emt 0:01:26]} b5 {[%emt 0:02:45]} 17. Nxd7 {[%emt 0:01:42]} Qxd7 {[%emt 0:00:11]} 18. Be2 {[%emt 0:00:07]} Bd5 {[%emt 0:00:25]} 19. Qe1 {[%emt 0:06:11]} Qe7 {[%emt 0:03:03]} 20. Bc3 {[%emt 0:06:44]} f5 {[%emt 0:02:02]} 21. Ba5 {[%emt 0:03:18]} h6 {[%emt 0:05:00]} 22. Kh1 {[%emt 0:03:29]} g5 {[%emt 0:00:56]} 23. g3 {[%emt 0:01:29]} Kh7 {[%emt 0:00:36]} 24. Qf2 {[%emt 0:01:19]} Rf6 {[%emt 0:03:27]} 25. Rg1 {[%emt 0:02:03]} Rg8 {[%emt 0:00:29]} 26. Rg2 {[%emt 0:01:13]} Qd7 {[%emt 0:08:14]} 27. Bc3 {[%emt 0:05:49]} Rfg6 {[%emt 0:06:26]} 28. Rag1 {[%emt 0:01:14]} Qc6 {[%emt 0:01:46]} 29. Be1 {[%emt 0:05:03]} Qd7 {[%emt 0:03:39]} 30. Bh5 {[%emt 0:02:19]} R6g7 {[%emt 0:00:48]} 31. Bd1 {[%emt 0:00:15]} Qe6 {[%emt 0:04:54]} 32. h4 {[%emt 0:02:19]} gxf4 {[%emt 0:04:06]} 33. gxf4 {[%emt 0:00:06]} Rxg2 {[%emt 0:12:39]} 34. Rxg2 {[%emt 0:00:10]} b4 {[%emt 0:00:37]} 35. Rxg8 {[%emt 0:00:44]} Qxg8 {[%emt 0:00:48]} 36. Qg1 {[%emt 0:03:36]} Qe8 {[%emt 0:01:03]} 37. Qf1 {[%emt 0:02:16]} Qc6 {[%emt 0:02:47]} 38. Qe2 {[%emt 0:03:03]} a5 {[%emt 0:01:00]} 39. Kh2 {[%emt 0:01:55]} Bf7 {[%emt 0:02:55]} 40. h5 {[%emt 0:03:03]} Be7 {[%emt 0:00:59]} 41. Kh3 {[%emt 0:00:55]} Qb6 {[%emt 0:04:27]} 42. Bh4 {[%emt 0:02:02]} Bf8 {[%emt 0:01:13]} 43. Qd2 {[%emt 0:01:43]} c5 {[%emt 0:01:05]} 44. dxc5 {[%emt 0:00:16]} Qxc5 {[%emt 0:01:28]} 45. Bf2 {[%emt 0:01:56]} Qc7 {[%emt 0:02:43]} 46. Be2 {[%emt 0:02:19]} Bg7 {[%emt 0:00:02]} 47. Bd1 {[%emt 0:01:06]} Bc3 {[%emt 0:00:35]} 48. Qe2 {[%emt 0:00:10]} Qc6 {[%emt 0:01:08]} 49. Bc2 {[%emt 0:00:32]} Kg7 {[%emt 0:00:55]} 50. Bd1 {[%emt 0:00:10]} Kf8 {[%emt 0:00:39]} 51. Bh4 {[%emt 0:00:40]} Ke8 {[%emt 0:00:17]} 52. Bc2 {[%emt 0:00:15]} Kd7 {[%emt 0:00:38]} 53. Qd1+ {[%emt 0:00:35]} Bd5 {[%emt 0:00:03]} 54. Qg1 {[%emt 0:00:22]} Kc7 {[%emt 0:01:39]} 55. Qg6 {[%emt 0:01:31]} Qxg6 {[%emt 0:02:07]} 56. hxg6 {[%emt 0:00:06]} Kd7 {[%emt 0:00:02]} 57. Kg3 {[%emt 0:03:53]} Be1+ {[%emt 0:02:12]} 58. Kh3 {[%emt 0:00:03]} Bd2 {[%emt 0:00:26]} 59. Bf2 {[%emt 0:00:25]} Ke8 {[%emt 0:00:10]} 60. Bd1 {[%emt 0:00:30]} Kf8 {[%emt 0:00:26]} 61. Be2 {[%emt 0:00:20]} a4 {[%emt 0:01:12]} 62. Bd1 {[%emt 0:01:21]} Kg7 {[%emt 0:00:14]} 63. Kg3 {[%emt 0:00:43]} Kxg6 {[%emt 0:00:04]} 64. Kh3 {[%emt 0:00:08]} a3 {[%emt 0:02:01]} 65. Kh4 {[%emt 0:00:30]} Bc6 {[%emt 0:00:24]} 66. Be2 {[%emt 0:00:08]} Bd5 {[%emt 0:00:18]} 67. Bd1 {[%emt 0:00:06]} Kg7 {[%emt 0:00:16]} 68. Kh5 {[%emt 0:04:15]} Bc3 {[%emt 0:00:33]} 69. Kh4 {[%emt 0:00:00]} Bf7 {[%emt 0:00:25]} 70. Kh3 {[%emt 0:00:00]} Kf8 {[%emt 0:00:15]} 71. Kh4 {[%emt 0:00:00]} Ke7 {[%emt 0:00:04]} 72. Kh3 {[%emt 0:00:00]} Kd6 {[%emt 0:00:04]} 73. Kh4 {[%emt 0:00:00]} Bf6+ {[%emt 0:00:49]} 74. Kh3 {[%emt 0:00:00]} Be8 {[%emt 0:00:32]} 75. Be2 {[%emt 0:00:00]} Bc3 {[%emt 0:00:32]} 76. Kh4 {[%emt 0:00:00]} Kc5 {[%emt 0:00:07]} 77. Kh3 {[%emt 0:00:00]} Ba4 {[%emt 0:01:38]} 78. Bc4 {[%emt 0:00:00]} Be8 {[%emt 0:00:26]} 79. Be2 {[%emt 0:00:00]} Bf7 {[%emt 0:00:24]} 80. Bd1 {[%emt 0:00:00]} Kd6 {[%emt 0:00:25]} 81. Kh4 {[%emt 0:00:00]} Bf6+ {[%emt 0:00:17]} 82. Kh3 {[%emt 0:00:00]} Be8 {[%emt 0:00:07]} 83. Be2 {[%emt 0:00:00]} Bc3 {[%emt 0:00:56]} 84. Kh4 {[%emt 0:00:47]} Ke7 {[%emt 0:00:03]} 85. Kh3 {[%emt 0:00:08]} Kf6 {[%emt 0:00:03]} 86. Kh4 {[%emt 0:00:11]} Kg7 {[%emt 0:00:06]} 87. Kh3 {[%emt 0:00:14]} Bf7 {[%emt 0:00:14]} 88. Bd1 {[%emt 0:00:13]} Bf6 {[%emt 0:00:21]} 89. Be1 {[%emt 0:00:35]} 1/2-1/2